bitfinex-derivatives/quotes_BTCF0:USTF0_20241128
["timestamp","ask_amount","ask_price","bid_price","bid_amount"]
[1732794489870,0.052349,95480.0,95478.0,0.052349]
[1732794490755,0.05235,95477.0,95476.0,0.3608]
[1732794490956,0.052348,95481.0,95480.0,0.052347]
[1732794492460,0.052349,95479.0,95478.0,0.001]
[1732794493062,0.05235,95477.0,95476.0,0.3608]
[1732794493863,0.001,95479.0,95478.0,0.052349]
[1732794494068,0.001,95479.0,95478.0,0.203789]
[1732794494275,0.001,95479.0,95478.0,0.052349]
[1732794494768,0.001,95479.0,95476.0,0.3608]
[1732794494965,0.002,95479.0,95478.0,0.052349]
[1732794495361,0.001,95479.0,95478.0,0.052349]
[1732794495763,9.385e-05,95488.0,95487.0,0.052344]
[1732794496768,0.05243785,95488.0,95487.0,0.052344]
[1732794498267,0.05243785,95488.0,95476.0,0.3608]
[1732794498268,0.00109385,95488.0,95476.0,0.3608]
[1732794498570,0.052347,95483.0,95482.0,0.052346]
[1732794499564,0.00209385,95488.0,95476.0,0.3608]
[1732794499765,0.052347,95483.0,95482.0,0.052346]
[1732794499971,0.05235,95478.0,95477.0,0.05235]
[1732794501571,0.002,95483.0,95482.0,0.052347]
[1732794501781,0.053347,95483.0,95482.0,0.052347]
[1732794502278,0.05235,95478.0,95477.0,0.05235]
[1732794502479,0.05335,95478.0,95477.0,0.05235]
[1732794503575,0.05235,95477.0,95476.0,0.3608]
[1732794503783,0.11345,95477.0,95476.0,0.3608]
[1732794504073,0.052351,95474.0,95473.0,0.052352]
[1732794505265,0.052351,95474.0,95473.0,0.042352]
[1732794505463,0.0611,95477.0,95469.0,8.684e-05]
[1732794505464,0.052354,95470.0,95469.0,0.05244084]
[1732794507171,0.053354,95470.0,95469.0,0.05244084]
[1732794507775,0.27809385,95488.0,95470.0,0.3142]
[1732794507970,0.18762492,95511.0,95502.0,0.052336]
[1732794508168,0.05091529,95510.0,95507.0,0.3608]
[1732794508373,0.08118957,95543.0,95508.0,0.052333]
[1732794508374,0.2191557,95529.0,95508.0,0.052333]
[1732794508577,0.3705557,95535.0,95528.0,0.3608]
[1732794508776,0.1514,95534.0,95528.0,0.3608]
[1732794510083,0.1514,95534.0,95528.0,0.3628]
[1732794510379,0.1514,95534.0,95528.0,0.3688]
[1732794511482,0.1514,95534.0,95528.0,0.3668]
[1732794511483,0.31404,95533.0,95528.0,0.3668]
[1732794511776,0.31404,95533.0,95528.0,0.3608]
[1732794512085,0.31404,95532.0,95528.0,0.3608]
[1732794512274,0.31404,95533.0,95528.0,0.3608]
[1732794512682,0.052321,95530.0,95528.0,0.3608]
[1732794512875,0.052321,95530.0,95528.0,0.3119]
[1732794513080,0.31404,95529.0,95528.0,0.3119]
[1732794514776,0.31404,95529.0,95528.0,0.3179]
[1732794514972,9.923e-05,95535.0,95528.0,0.3179]
[1732794515177,0.15136,95534.0,95528.0,0.3179]
[1732794515580,0.31404,95533.0,95528.0,0.3179]
[1732794515778,0.15136,95532.0,95528.0,0.3179]
[1732794516283,9.923e-05,95535.0,95528.0,0.3119]
[1732794516284,0.001,95529.0,95528.0,0.3119]
[1732794516473,0.15236,95529.0,95528.0,0.3119]
[1732794516671,0.4664,95529.0,95528.0,0.3119]
[1732794517587,0.518721,95529.0,95528.0,0.262]
[1732794518375,0.56862082,95529.0,95528.0,0.262]
[1732794518580,0.56862082,95529.0,95528.0,0.261]
[1732794518783,0.56862082,95529.0,95528.0,0.262]
[1732794519283,0.56862082,95529.0,95528.0,0.268]
[1732794519284,0.20225982,95529.0,95528.0,0.268]
[1732794519478,0.15136,95529.0,95528.0,0.268]
[1732794519975,0.052321,95530.0,95528.0,0.262]
[1732794520176,0.05189757,95529.0,95528.0,0.262]
[1732794520483,0.15236,95529.0,95528.0,0.262]
[1732794521080,0.15236,95529.0,95528.0,0.261]
[1732794521286,0.001,95529.0,95528.0,0.262]
[1732794521790,0.001,95529.0,95528.0,0.314322]
[1732794523381,0.15136,95532.0,95529.0,0.052321]
[1732794523590,0.15136,95532.0,95531.0,0.3608]
[1732794524295,0.15136,95532.0,95531.0,0.41312]
[1732794524491,9.923e-05,95535.0,95531.0,0.41312]
[1732794525189,9.923e-05,95535.0,95534.0,0.052319]
[1732794528496,9.923e-05,95535.0,95534.0,0.053319]
[1732794528685,2.3e-07,95535.0,95534.0,0.367359]
[1732794528995,0.0308,95574.0,95553.0,0.052308]
[1732794528996,0.203624,95560.0,95553.0,0.052308]
[1732794529193,0.12484459,95567.0,95553.0,0.773908]
[1732794529385,0.052303,95563.0,95553.0,0.773908]
[1732794529591,0.15124,95558.0,95553.0,0.773908]
[1732794529995,0.052306,95557.0,95553.0,0.773908]
[1732794530190,0.15124,95558.0,95553.0,0.773908]
[1732794530191,0.203546,95558.0,95553.0,0.773908]
[1732794530386,0.052305,95559.0,95553.0,0.773908]
[1732794530587,0.15137043,95560.0,95553.0,0.773908]
[1732794530791,0.05243543,95560.0,95553.0,0.773908]
[1732794531085,0.00013043,95560.0,95553.0,0.773908]
[1732794531484,0.00013043,95560.0,95553.0,0.774908]
[1732794532293,0.00013043,95560.0,95553.0,1.088868]
[1732794532585,0.00013043,95560.0,95553.0,0.774908]
[1732794533190,0.052305,95559.0,95553.0,0.774908]
[1732794533394,0.05243443,95560.0,95553.0,0.774908]
[1732794533701,0.00013043,95560.0,95553.0,0.774908]
[1732794533896,0.052305,95559.0,95553.0,0.774908]
[1732794534102,0.00013043,95560.0,95553.0,0.774908]
[1732794534297,0.05387877,95554.0,95553.0,0.774908]
[1732794534593,0.05387877,95554.0,95553.0,0.7216]
[1732794535389,0.05387877,95554.0,95553.0,0.7226]
[1732794536003,0.05387877,95554.0,95553.0,0.7216]
[1732794536494,0.10475926,95554.0,95553.0,0.7216]
[1732794536899,0.10475926,95554.0,95553.0,0.773908]
[1732794537098,0.05387877,95554.0,95553.0,0.773908]
[1732794537491,0.10475809,95554.0,95553.0,0.773908]
[1732794537800,0.05245009,95554.0,95553.0,0.773908]
[1732794538392,0.051008,95560.0,95553.0,0.7216]
[1732794538599,0.00013043,95560.0,95559.0,0.052305]
[1732794539490,0.00013043,95560.0,95559.0,0.366265]
[1732794539696,0.2398098,95574.0,95573.0,0.052297]
[1732794539891,0.052297,95574.0,95573.0,0.413097]
[1732794540404,0.052297,95574.0,95573.0,0.3608]
[1732794541402,0.203497,95574.0,95573.0,0.3608]
[1732794541791,0.3910098,95574.0,95573.0,0.3608]
[1732794542101,0.203497,95574.0,95573.0,0.3608]
[1732794542403,0.2398098,95574.0,95573.0,0.3618]
[1732794542611,0.2398098,95574.0,95573.0,0.414097]
[1732794542612,0.052297,95574.0,95573.0,0.414097]
[1732794543692,0.052297,95574.0,95573.0,0.413097]
[1732794543894,0.1512,95575.0,95574.0,0.052297]
[1732794544094,9.664e-05,95576.0,95575.0,0.052296]
[1732794545401,9.664e-05,95576.0,95575.0,0.366176]
[1732794545603,9.664e-05,95576.0,95575.0,0.36627889]
[1732794545911,0.00156996,95592.0,95591.0,0.052287]
[1732794546206,0.00156996,95592.0,95591.0,0.773887]
[1732794546406,0.00156996,95592.0,95591.0,1.087727]
[1732794547512,0.00156996,95592.0,95591.0,0.773887]
[1732794547707,0.05385696,95592.0,95591.0,0.773887]
[1732794548003,0.05385696,95592.0,95591.0,0.7216]
[1732794548205,0.00156996,95592.0,95591.0,0.773887]
[1732794548909,0.052284,95597.0,95596.0,0.052285]
[1732794549215,0.1,95600.0,95599.0,0.052283]
[1732794549403,0.152282,95600.0,95599.0,0.413083]
[1732794550100,0.152282,95600.0,95599.0,0.726883]
[1732794550305,0.152282,95600.0,95599.0,0.413083]
[1732794550306,0.1,95600.0,95599.0,0.413083]
[1732794551814,0.1,95600.0,95569.0,0.00104]
[1732794551815,1.15336,95600.0,95569.0,0.00104]
[1732794552111,1.15336,95600.0,95550.0,0.3608]
[1732794552112,0.052306,95557.0,95550.0,0.3608]
[1732794552316,0.15116,95565.0,95558.0,0.3608]
[1732794552499,0.15116,95565.0,95550.0,0.37913391]
[1732794552500,0.15116,95564.0,95550.0,0.50529519]
[1732794552805,0.3608,95566.0,95555.0,0.3608]
[1732794552806,0.052307,95556.0,95555.0,0.3608]
[1732794553199,0.052307,95556.0,95555.0,0.36087531]
[1732794554002,0.052307,95556.0,95555.0,7.531e-05]
[1732794554704,0.052307,95556.0,95555.0,0.00107531]
[1732794557608,0.203467,95556.0,95555.0,0.00107531]
[1732794561011,0.052307,95556.0,95555.0,0.00107531]
[1732794561218,0.203467,95556.0,95555.0,0.00107531]
[1732794562421,0.203467,95556.0,95548.0,0.097]
[1732794562422,0.05231,95549.0,95548.0,0.097]
[1732794562813,0.01779933,95556.0,95555.0,0.052307]
[1732794563115,0.01779933,95556.0,95552.0,0.3608]
[1732794563116,0.00064,95556.0,95552.0,0.3608]
[1732794563318,0.15116,95555.0,95553.0,8.816e-05]
[1732794563524,0.3608,95592.0,95554.0,0.5908]
[1732794563715,0.37840126,95592.0,95582.0,0.3608]
[1732794564220,0.37840126,95592.0,95586.0,0.05229]
[1732794564221,0.27708,95592.0,95586.0,0.05229]
[1732794564412,0.00157034,95597.0,95596.0,0.052285]
[1732794564618,0.1,95600.0,95599.0,0.052283]
[1732794565114,0.1,95600.0,95599.0,0.36617304]
[1732794566523,0.1,95600.0,95599.0,0.05337304]
[1732794567014,0.1,95600.0,95599.0,0.36817304]
[1732794567416,0.05,95600.0,95599.0,0.05437304]
[1732794567618,0.05,95600.0,95599.0,0.36817304]
[1732794567808,0.05,95600.0,95599.0,0.42909304]
[1732794568117,0.05,95600.0,95599.0,0.11629304]
[1732794568325,0.18736523,95633.0,95610.0,0.052277]
[1732794568514,0.15575426,95636.0,95627.0,0.3608]
[1732794568818,0.203377,95646.0,95627.0,0.726788]
[1732794568819,0.15112,95646.0,95627.0,0.726788]
[1732794569219,0.004,95637.0,95627.0,0.726788]
[1732794569514,0.00408692,95650.0,95648.0,0.052256]
[1732794569722,0.00408692,95650.0,95648.0,0.413056]
[1732794570317,0.00156917,95657.0,95656.0,0.052252]
[1732794570514,0.00156917,95657.0,95656.0,0.413052]
[1732794570718,0.15108,95678.0,95656.0,0.67444]
[1732794570919,0.15108,95678.0,95669.0,0.3608]
[1732794571221,0.54872524,95688.0,95678.0,0.05224]
[1732794571222,7.869e-05,95688.0,95678.0,0.05224]
[1732794571419,0.052235,95687.0,95685.0,0.3608]
[1732794571621,0.0006387,95688.0,95685.0,0.3608]
[1732794571818,0.25575426,95700.0,95686.0,0.31352]
[1732794572019,0.1,95700.0,95698.0,0.052229]
[1732794572215,0.1,95700.0,95699.0,0.51188]
[1732794572416,0.01796043,95716.0,95699.0,0.51188]
[1732794572417,0.01796043,95716.0,95707.0,0.052224]
[1732794572629,0.15108,95727.0,95715.0,0.3608]
[1732794572821,0.00156835,95729.0,95723.0,0.3608]
[1732794572822,0.05378035,95729.0,95723.0,0.3608]
[1732794573227,0.00156835,95729.0,95727.0,0.413013]
[1732794574120,7.85e-05,95739.0,95728.0,0.3134]
[1732794574324,7.85e-05,95739.0,95737.0,0.413007]
[1732794574516,7.85e-05,95739.0,95737.0,0.3608]
[1732794574715,0.00835728,95738.0,95737.0,0.3608]
[1732794575225,0.00835728,95738.0,95737.0,0.67416]
[1732794575414,0.052193,95764.0,95749.0,0.052201]
[1732794575623,0.052193,95764.0,95763.0,0.3608]
[1732794575828,0.36236714,95786.0,95763.0,0.3608]
[1732794575829,0.00156714,95786.0,95763.0,0.3608]
[1732794576128,0.052183,95783.0,95768.0,0.18906651]
[1732794576328,0.052183,95783.0,95781.0,0.3608]
[1732794576631,0.052183,95783.0,95781.0,0.36091507]
[1732794576632,8.28e-05,95782.0,95781.0,0.36091507]
[1732794576835,8.28e-05,95782.0,95781.0,0.00011507]
[1732794577323,8.28e-05,95782.0,95781.0,0.31331507]
[1732794577715,8.28e-05,95782.0,95781.0,0.31831507]
[1732794577921,0.0010828,95782.0,95781.0,0.31831507]
[1732794578418,0.1,95800.0,95781.0,0.00511507]
[1732794578619,0.052182,95785.0,95784.0,0.3608]
[1732794578921,0.052182,95785.0,95781.0,0.00511507]
[1732794578922,0.052183,95782.0,95781.0,0.00511507]
[1732794579421,0.05431457,95782.0,95781.0,0.00111507]
[1732794580521,0.05231457,95782.0,95781.0,0.00011507]
[1732794580723,0.05231457,95782.0,95779.0,0.3608]
[1732794581021,0.05219,95770.0,95763.0,0.06348]
[1732794581216,0.05219,95770.0,95769.0,0.3608]
[1732794581421,0.052187,95775.0,95769.0,0.3608]
[1732794581627,0.00213157,95782.0,95769.0,0.3608]
[1732794581932,0.052184,95781.0,95780.0,0.00012041]
[1732794582428,0.16753157,95782.0,95763.0,0.06348]
[1732794582619,0.052193,95764.0,95763.0,0.06348]
[1732794583019,0.3608,95779.0,95763.0,0.06348]
[1732794583328,0.00213157,95782.0,95780.0,0.052184]
[1732794583535,1e-08,95795.0,95794.0,0.052177]
[1732794583730,0.1,95800.0,95799.0,0.052174]
[1732794583925,0.1654,95837.0,95795.0,0.752464]
[1732794584229,0.00156661,95840.0,95807.0,0.41297]
[1732794584230,0.052152,95839.0,95807.0,0.41297]
[1732794584428,0.052153,95838.0,95807.0,0.89149]
[1732794584632,0.00156661,95840.0,95807.0,0.89149]
[1732794584830,0.052153,95837.0,95807.0,0.89149]
[1732794585024,0.052154,95836.0,95807.0,0.89149]
[1732794585229,0.00156661,95840.0,95829.0,0.052158]
[1732794585427,0.00156661,95840.0,95829.0,0.939118]
[1732794585632,0.052156,95832.0,95829.0,0.7216]
[1732794585930,0.00156661,95840.0,95829.0,0.7216]
[1732794585931,0.052157,95831.0,95829.0,0.7216]
[1732794586930,0.052164,95818.0,95809.0,0.052168]
[1732794587135,0.3608,95834.0,95808.0,7.913e-05]
[1732794587338,0.052168,95810.0,95808.0,7.913e-05]
[1732794590023,0.0323,95809.0,95808.0,0.00207913]
[1732794590224,0.052171,95805.0,95804.0,0.05428]
[1732794590432,0.052171,95805.0,95804.0,0.00438]
[1732794591230,0.052171,95805.0,95804.0,0.00445537]
[1732794592335,0.052171,95805.0,95804.0,7.537e-05]
[1732794592733,0.052171,95805.0,95804.0,0.00807537]
[1732794593045,0.052171,95805.0,95804.0,0.01707537]
[1732794593533,0.06053613,95805.0,95804.0,0.01007537]
[1732794593735,0.06053613,95805.0,95804.0,0.00207537]
[1732794593935,0.052171,95805.0,95804.0,0.00207537]
[1732794594328,0.06159802,95805.0,95804.0,0.00107537]
[1732794594738,0.06159831,95805.0,95804.0,0.00107537]
[1732794595037,0.06159831,95805.0,95804.0,0.36536637]
[1732794595038,0.01042731,95805.0,95804.0,0.36536637]
[1732794595238,0.002,95805.0,95804.0,0.05224637]
[1732794595439,0.002,95805.0,95804.0,0.36536637]
[1732794595838,0.05217,95807.0,95804.0,0.05224637]
[1732794596035,0.05217,95807.0,95805.0,0.3608]
[1732794596428,0.00865241,95806.0,95805.0,0.3608]
[1732794596630,0.00865249,95806.0,95805.0,0.3608]
[1732794597640,0.05317,95807.0,95805.0,0.3608]
[1732794597946,0.052171,95805.0,95804.0,7.537e-05]
[1732794598634,0.06066173,95805.0,95804.0,7.537e-05]
[1732794598836,0.052176,95795.0,95794.0,0.3608]
[1732794599034,0.06066673,95795.0,95794.0,0.3608]
[1732794599433,0.06066673,95795.0,95794.0,0.3109]
[1732794600238,0.052177,95794.0,95793.0,0.00010381]
[1732794600431,0.73462773,95794.0,95775.0,0.3608]
[1732794600633,0.052186,95776.0,95775.0,0.3608]
[1732794600837,0.06058484,95776.0,95775.0,0.3608]
[1732794601043,0.06058484,95776.0,95762.0,0.3608]
[1732794601044,0.052193,95763.0,95762.0,0.3608]
[1732794601244,0.052193,95763.0,95754.0,0.02088257]
[1732794601245,0.052197,95757.0,95754.0,0.02088257]
[1732794601436,0.17148,95774.0,95755.0,0.05228989]
[1732794601437,0.06059684,95756.0,95755.0,0.05228989]
[1732794601749,0.06059684,95756.0,95755.0,9.189e-05]
[1732794601949,0.052198,95756.0,95755.0,9.189e-05]
[1732794602154,0.0607643,95756.0,95755.0,9.189e-05]
[1732794603443,0.0607643,95756.0,95755.0,0.00409189]
[1732794603840,0.2322443,95756.0,95755.0,0.00409189]
[1732794604046,0.0607643,95756.0,95755.0,0.00609189]
[1732794604350,0.0085663,95756.0,95755.0,0.01509189]
[1732794604659,0.0085663,95756.0,95755.0,0.33137189]
[1732794605035,0.0085663,95756.0,95755.0,0.01809189]
[1732794605238,0.00866753,95756.0,95755.0,0.01809189]
[1732794605750,0.052197,95757.0,95755.0,0.01809189]
[1732794605751,0.052197,95757.0,95755.0,0.00909189]
[1732794605948,0.001,95756.0,95755.0,0.00909189]
[1732794606144,0.001,95756.0,95755.0,9.189e-05]
[1732794606943,0.17252,95756.0,95755.0,0.00909189]
[1732794607543,0.17252,95756.0,95755.0,0.00109189]
[1732794608048,0.001,95756.0,95755.0,0.00109189]
[1732794608254,0.17252,95756.0,95755.0,0.00109189]
[1732794608752,0.49416186,95756.0,95755.0,0.00109189]
[1732794608954,0.052208,95736.0,95731.0,0.052211]
[1732794609156,0.00836186,95735.0,95731.0,0.052211]
[1732794609352,0.00836186,95734.0,95721.0,0.3608]
[1732794609654,0.052211,95731.0,95721.0,0.413016]
[1732794609951,0.3608,95741.0,95721.0,0.413016]
[1732794610148,0.052211,95731.0,95730.0,0.00012299]
[1732794610343,0.06075003,95731.0,95730.0,0.00012299]
[1732794610548,0.37411003,95731.0,95729.0,0.009]
[1732794610757,0.3134,95730.0,95729.0,0.009]
[1732794610951,0.75208,95730.0,95721.0,0.3608]
[1732794611254,0.413016,95722.0,95721.0,0.009]
[1732794611444,0.726416,95722.0,95721.0,0.009]
[1732794611646,0.91513044,95722.0,95721.0,0.009]
[1732794612044,0.18871444,95722.0,95710.0,7.609e-05]
[1732794612243,0.052222,95711.0,95710.0,7.609e-05]
[1732794612446,0.06081951,95711.0,95710.0,7.609e-05]
[1732794612845,0.06081951,95711.0,95710.0,0.08699609]
[1732794612846,0.00859751,95711.0,95710.0,0.08699609]
[1732794613851,0.052221,95712.0,95710.0,0.08799609]
[1732794614254,0.00859693,95722.0,95710.0,0.08799609]
[1732794614455,0.00859693,95722.0,95720.0,0.413017]
[1732794614849,0.00837254,95721.0,95720.0,0.413017]
[1732794616661,0.00837254,95721.0,95720.0,0.3608]
[1732794616848,0.06458854,95721.0,95720.0,0.3608]
[1732794618060,0.01237254,95721.0,95710.0,0.00107609]
[1732794618255,0.052222,95711.0,95710.0,0.00107609]
[1732794618565,0.06059454,95711.0,95710.0,7.609e-05]
[1732794618949,0.052222,95711.0,95710.0,7.609e-05]
[1732794619958,0.005,95721.0,95710.0,7.609e-05]
[1732794619959,0.05222,95715.0,95713.0,0.052221]
[1732794620260,0.16752,95717.0,95716.0,0.052219]
[1732794620454,0.052217,95721.0,95720.0,0.052216]
[1732794620656,0.052207,95738.0,95720.0,0.052217]
[1732794620856,0.052215,95724.0,95714.0,0.3608]
[1732794621157,0.052207,95738.0,95722.0,0.3608]
[1732794621158,0.052215,95723.0,95722.0,0.3608]
[1732794622360,0.052213,95727.0,95722.0,0.3608]
[1732794622664,0.002,95732.0,95722.0,0.3608]
[1732794622857,0.05421,95732.0,95731.0,0.3608]
[1732794623452,0.05221,95732.0,95731.0,0.3608]
[1732794624058,0.052215,95723.0,95722.0,0.003]
[1732794624558,0.052215,95723.0,95722.0,0.3608]
[1732794626550,0.052215,95723.0,95711.0,0.3608]
[1732794626551,0.16756,95726.0,95712.0,0.052221]
[1732794626754,0.052221,95713.0,95712.0,0.052221]
[1732794626953,0.001,95723.0,95711.0,0.3608]
[1732794626954,0.052221,95712.0,95711.0,0.3608]
[1732794627255,0.16756,95715.0,95710.0,7.609e-05]
[1732794627457,0.052222,95711.0,95710.0,7.609e-05]
[1732794628954,0.05433402,95711.0,95710.0,7.609e-05]
[1732794630564,0.05433402,95711.0,95705.0,0.3608]
[1732794630565,0.052223,95709.0,95705.0,0.3608]
[1732794630773,0.052227,95701.0,95700.0,0.1]
[1732794630971,0.052227,95701.0,95673.0,0.00104]
[1732794630972,0.052231,95695.0,95680.0,0.3608]
[1732794631264,0.05224,95677.0,95670.0,0.0306]
[1732794631462,0.05224,95677.0,95675.0,0.052241]
[1732794631660,0.16756,95688.0,95673.0,0.3608]
[1732794631661,0.052242,95674.0,95673.0,0.3608]
[1732794631964,0.052242,95674.0,95671.0,9.902e-05]
[1732794631965,0.052243,95672.0,95671.0,9.902e-05]
[1732794632364,0.365803,95672.0,95671.0,9.902e-05]
[1732794632964,0.17693824,95672.0,95671.0,9.902e-05]
[1732794633266,0.365803,95672.0,95671.0,9.902e-05]
[1732794633857,0.31356,95672.0,95653.0,0.3608]
[1732794634059,0.052253,95654.0,95653.0,0.3608]
[1732794634260,0.1676,95654.0,95647.0,0.052256]
[1732794634463,0.052256,95649.0,95635.0,0.02207621]
[1732794634664,0.1676,95654.0,95647.0,0.052256]
[1732794634873,0.052256,95650.0,95648.0,0.00010552]
[1732794635065,0.1676,95654.0,95648.0,0.00010552]
[1732794635269,0.1676,95654.0,95653.0,0.3608]
[1732794635270,0.219853,95654.0,95653.0,0.3608]
[1732794635465,0.219853,95654.0,95648.0,0.00010552]
[1732794635466,0.052256,95650.0,95648.0,0.00010552]
[1732794636172,8.867e-05,95649.0,95648.0,0.00010552]
[1732794636668,0.09345232,95673.0,95648.0,0.67454552]
[1732794636882,0.10365018,95685.0,95648.0,0.67454552]
[1732794636883,0.09345232,95682.0,95672.0,0.3608]
[1732794637072,0.439,95691.0,95672.0,0.3608]
[1732794637073,0.09345232,95685.0,95672.0,0.3608]
[1732794637265,0.60664,95691.0,95679.0,0.052239]
[1732794637474,0.60664,95691.0,95674.0,0.052242]
[1732794637776,0.0016527,95680.0,95678.0,0.05224]
[1732794637970,0.0016527,95680.0,95672.0,0.3608]
[1732794638170,0.052239,95679.0,95672.0,0.001]
[1732794638373,0.0086527,95680.0,95679.0,0.052239]
[1732794638766,0.0638917,95680.0,95678.0,0.3608]
[1732794639062,0.0116527,95680.0,95678.0,0.413039]
[1732794639666,0.0116527,95680.0,95678.0,0.3608]
[1732794639870,0.0116527,95680.0,95678.0,0.41304]
[1732794640072,0.0638917,95680.0,95678.0,0.41304]
[1732794640273,0.007,95679.0,95678.0,0.41304]
[1732794640779,0.007,95679.0,95678.0,0.3608]
[1732794641466,0.059239,95679.0,95678.0,0.3608]
[1732794641769,0.052239,95679.0,95678.0,0.3668]
[1732794642372,0.053239,95679.0,95678.0,0.3718]
[1732794642982,0.053239,95679.0,95678.0,0.3658]
[1732794642983,0.052239,95679.0,95678.0,0.3658]
[1732794643485,0.052239,95679.0,95678.0,0.3678]
[1732794643678,0.0016527,95680.0,95678.0,0.3678]
[1732794644076,0.09345232,95702.0,95679.0,0.365799]
[1732794644276,0.09345232,95710.0,95709.0,0.052223]
[1732794644477,0.09345232,95710.0,95694.0,0.7216]
[1732794644478,0.052223,95708.0,95707.0,0.3608]
[1732794645185,0.05235083,95708.0,95707.0,0.3608]
[1732794645393,0.16772783,95708.0,95694.0,0.3608]
[1732794645690,0.052231,95695.0,95694.0,0.3608]
[1732794646281,0.052235,95686.0,95685.0,0.3608]
[1732794646483,0.219835,95686.0,95685.0,0.3608]
[1732794647185,0.1676,95686.0,95685.0,0.413036]
[1732794647384,0.052233,95692.0,95688.0,0.052234]
[1732794647580,0.052233,95690.0,95688.0,0.052234]
[1732794647782,0.09345232,95696.0,95685.0,0.3608]
[1732794647984,0.052235,95686.0,95685.0,0.3608]
[1732794649784,0.368755,95686.0,95685.0,0.3608]
[1732794649987,0.368755,95686.0,95680.0,0.04596]
[1732794649988,0.052238,95681.0,95680.0,0.04596]
[1732794650377,0.365798,95681.0,95680.0,0.04596]
[1732794651784,0.052247,95664.0,95663.0,0.3608]
[1732794651981,0.052247,95664.0,95660.0,0.05268]
[1732794652287,0.052249,95661.0,95660.0,0.05268]
[1732794653188,0.052249,95661.0,95660.0,0.05968]
[1732794653391,0.001,95664.0,95660.0,0.05968]
[1732794653590,0.053247,95664.0,95663.0,0.003]
[1732794653986,0.053247,95664.0,95663.0,0.055248]
[1732794654185,0.053247,95664.0,95663.0,0.003]
[1732794654388,0.052249,95662.0,95660.0,0.06368]
[1732794654586,0.06069076,95661.0,95660.0,0.06368]
[1732794654780,0.06169076,95661.0,95660.0,0.011]
[1732794655188,0.06169076,95661.0,95660.0,0.007]
[1732794655391,0.22545076,95661.0,95658.0,0.052251]
[1732794655590,0.17320176,95660.0,95659.0,0.05225]
[1732794655983,0.17320176,95660.0,95656.0,0.3608]
[1732794656191,0.14576937,95657.0,95656.0,0.3608]
[1732794656486,0.052251,95657.0,95656.0,0.3608]
[1732794656687,0.17700345,95657.0,95656.0,0.3608]
[1732794656995,0.12475245,95658.0,95657.0,0.052251]
[1732794657292,0.12475245,95660.0,95659.0,0.05225]
[1732794657487,0.001,95661.0,95659.0,0.05225]
[1732794657688,0.052251,95657.0,95656.0,0.3658]
[1732794658294,0.20813027,95657.0,95656.0,0.005]
[1732794658499,0.052255,95650.0,95645.0,0.36236807]
[1732794658686,0.16476,95649.0,95645.0,0.41462607]
[1732794658883,0.16476,95649.0,95645.0,0.36236807]
[1732794659088,0.16476,95649.0,95645.0,0.36356807]
[1732794659597,0.16476,95649.0,95648.0,0.00910552]
[1732794659893,0.32085298,95649.0,95648.0,0.00910552]
[1732794660097,0.16476,95649.0,95648.0,0.00910552]
[1732794660296,0.217016,95649.0,95648.0,0.00910552]
[1732794660691,0.26784447,95649.0,95648.0,0.00910552]
[1732794660889,0.217016,95649.0,95648.0,0.01610552]
[1732794661092,0.26784461,95649.0,95648.0,0.01610552]
[1732794661287,0.26884461,95649.0,95648.0,0.01610552]
[1732794661492,0.218016,95649.0,95648.0,0.01610552]
[1732794661694,0.26884556,95649.0,95648.0,0.01610552]
[1732794662401,0.21669324,95649.0,95632.0,0.3608]
[1732794662701,0.052264,95633.0,95632.0,0.3608]
[1732794663291,0.14595509,95633.0,95632.0,0.3608]
[1732794663490,0.052264,95633.0,95632.0,0.3608]
[1732794664093,0.14589344,95633.0,95632.0,0.3608]
[1732794664499,0.12492145,95637.0,95636.0,0.052263]
[1732794664800,0.09362175,95641.0,95632.0,0.3758]
[1732794664997,0.05226,95642.0,95640.0,0.052261]
[1732794665295,0.1648,95643.0,95640.0,0.3608]
[1732794665897,0.14588175,95641.0,95640.0,0.3608]
[1732794666098,0.14588175,95641.0,95632.0,0.3638]
[1732794666099,0.052264,95633.0,95632.0,0.3638]
[1732794666400,0.06089459,95633.0,95632.0,0.3638]
[1732794666587,0.00863059,95633.0,95632.0,0.416065]
[1732794667601,0.00863059,95633.0,95632.0,0.445465]
[1732794667793,0.001,95643.0,95632.0,0.445465]
[1732794667794,0.001,95643.0,95632.0,0.3932]
[1732794667993,0.053259,95643.0,95642.0,0.41306]
[1732794668194,0.052259,95643.0,95642.0,0.41306]
[1732794668802,0.052259,95643.0,95642.0,0.3608]
[1732794669006,0.00010368,95649.0,95632.0,0.3962]
[1732794669007,0.05226,95642.0,95632.0,0.3658]
[1732794669200,0.052264,95633.0,95632.0,0.3658]
[1732794669892,0.052264,95633.0,95632.0,0.4578]
[1732794670499,0.052264,95633.0,95632.0,0.4528]
[1732794671398,0.052264,95633.0,95632.0,0.4548]
[1732794671599,0.052264,95633.0,95632.0,0.094]
[1732794671802,0.052264,95633.0,95632.0,0.097]
[1732794672002,0.052264,95633.0,95604.0,0.05228]
[1732794672003,0.052278,95609.0,95604.0,0.05228]
[1732794672398,0.052278,95609.0,95601.0,0.0312]
[1732794672600,0.052278,95609.0,95604.0,0.05228]
[1732794672792,0.1648,95614.0,95613.0,0.052275]
[1732794672993,0.217075,95614.0,95613.0,0.052275]
[1732794673196,0.1648,95614.0,95613.0,0.052275]
[1732794673398,0.3608,95636.0,95613.0,0.052275]
[1732794673399,0.09352029,95628.0,95613.0,0.31376]
[1732794673599,0.09352029,95638.0,95627.0,0.3608]
[1732794673798,0.12478532,95642.0,95627.0,0.3608]
[1732794673799,0.12478532,95642.0,95641.0,0.05226]
[1732794674001,0.00010368,95649.0,95642.0,0.05226]
[1732794674202,0.00010368,95649.0,95643.0,0.052256]
[1732794674203,0.052259,95644.0,95643.0,0.052256]
[1732794674597,0.00010368,95649.0,95641.0,0.3608]
[1732794674598,0.00010368,95649.0,95648.0,0.052256]
[1732794674801,0.00010368,95649.0,95648.0,0.726696]